fUST/lending_fUST_20251014
["ID","MTS","AMOUNT","RATE_DAILY","PERIOD"]
[391175980,1760407854501,-500.0,0.00020989,2]
[391175981,1760407854511,-500.0,0.00020989,2]
[391175982,1760407854520,-500.0,0.00020989,2]
[391175983,1760407854529,-517.01633479,0.00020989,2]
[391175984,1760407854538,-500.0,0.00020989,2]
[391175985,1760407854548,-500.0,0.00020989,2]
[391175986,1760407854557,-500.0,0.00020989,2]
[391175987,1760407854565,-413.57374698,0.00020989,2]
[391175988,1760407854574,-500.0,0.00020989,2]
[391175989,1760407854583,-500.0,0.00020989,2]
[391175990,1760407854592,-500.0,0.00020989,2]
[391175991,1760407854601,-242.68193309,0.00020989,2]
[391175992,1760407854610,-500.0,0.00020989,2]
[391175993,1760407854618,-500.0,0.00020989,2]
[391175994,1760407854627,-500.0,0.00020989,2]
[391175995,1760407854636,-567.81000429,0.00020989,2]
[391175996,1760407854645,-500.0,0.00020989,2]
[391175997,1760407854653,-500.0,0.00020989,2]
[391175998,1760407854662,-500.0,0.00020989,2]
[391175999,1760407854671,-500.0,0.00020989,2]
[391176000,1760407854680,-500.0,0.00020989,2]
[391176001,1760407854689,-500.0,0.00020989,2]
[391176002,1760407854697,-558.35,0.00020989,2]
[391176003,1760407854706,-506.56101932,0.00020989,2]
[391176004,1760407854714,-505.77317907,0.00020989,2]
[391176005,1760407854723,-501.00915006,0.00020989,2]
[391176006,1760407854732,-500.0,0.00020989,2]
[391176007,1760407854741,-424.18646961,0.00020989,2]
[391176008,1760407854750,-500.0,0.00020989,2]
[391176009,1760407854759,-500.0,0.00020989,2]
[391176010,1760407854767,-500.0,0.00020989,2]
[391176011,1760407854776,-505.79674155,0.00020989,2]
[391176012,1760407854785,-503.35046868,0.00020989,2]
[391176013,1760407854793,-501.76633826,0.00020989,2]
[391176014,1760407854802,-500.0,0.00020989,2]
[391176015,1760407854811,-500.0,0.00020989,2]
[391176016,1760407854820,-520.57078924,0.00020989,2]
[391176017,1760407854829,-501.81803998,0.00020989,2]
[391176018,1760407854838,-500.0,0.00020989,2]
[391176019,1760407854847,-545.31747569,0.00020989,2]
[391176020,1760407854856,-520.43791467,0.00020989,2]
[391176021,1760407854864,-500.77365786,0.00020989,2]
[391176022,1760407854873,-502.3407864,0.00020989,2]
[391176023,1760407854883,-501.37440144,0.00020989,2]
[391176024,1760407854891,-507.15091543,0.00020989,2]
[391176025,1760407854900,-500.0,0.00020989,2]
[391176026,1760407854909,-502.06460072,0.00020989,2]
[391176027,1760407854917,-502.2127554,0.00020989,2]
[391176028,1760407854926,-506.29199218,0.00020989,2]
[391176029,1760407854935,-500.0,0.00020989,2]
[391176030,1760407854943,-500.0,0.00020989,2]
[391176031,1760407854952,-500.0,0.00020989,2]
[391176032,1760407854961,-500.0,0.00020989,2]
[391176033,1760407854970,-500.0,0.00020989,2]
[391176034,1760407854979,-500.0,0.00020989,2]
[391176035,1760407854988,-500.0,0.00020989,2]
[391176036,1760407854997,-641.48318147,0.00020989,2]
[391176037,1760407855006,-500.0,0.00020989,2]
[391176038,1760407855015,-500.0,0.00020989,2]
[391176039,1760407855024,-280.46231867,0.00020989,2]
[391176040,1760407855032,-501.60899115,0.00020989,2]
[391176041,1760407855041,-500.0,0.00020989,2]
[391176042,1760407855052,-511.24775972,0.00020989,2]
[391176043,1760407855061,-501.73086572,0.00020989,2]
[391176044,1760407855070,-500.0,0.00020989,2]
[391176045,1760407855079,-509.30816852,0.00020989,2]
[391176046,1760407855088,-500.0,0.00020989,2]
[391176047,1760407855096,-500.0,0.00020989,2]
[391176048,1760407855105,-500.0,0.00020989,2]
[391176049,1760407855114,-500.0,0.00020989,2]
[391176050,1760407855122,-500.0,0.00020989,2]
[391176051,1760407855131,-500.0,0.00020989,2]
[391176052,1760407855140,-500.0,0.00020989,2]
[391176053,1760407855149,-500.0,0.00020989,2]
[391176054,1760407855158,-500.0,0.00020989,2]
[391176055,1760407855176,-500.0,0.00020989,2]
[391176056,1760407855321,-500.0,0.00020989,2]
[391176057,1760407855329,-222.27498143,0.00020989,2]
[391176058,1760407855338,-1000.0,0.00020989,2]
[391176059,1760407855347,-1000.0,0.00020989,2]
[391176060,1760407855362,-1004.45058874,0.00020989,2]
[391176061,1760407855384,-500.0,0.00020989,2]
[391176062,1760407855397,-504.16402646,0.00020989,2]
[391176063,1760407855406,-500.0,0.00020989,2]
[391176064,1760407855415,-504.025725,0.00020989,2]
[391176065,1760407855424,-500.0,0.00020989,2]
[391176066,1760407855433,-513.7991486,0.00020989,2]
[391176067,1760407855442,-525.22431906,0.00020989,2]
[391176068,1760407855452,-500.0,0.00020989,2]
[391176069,1760407855461,-500.0,0.00020989,2]
[391176070,1760407855470,-500.0,0.00020989,2]
[391176071,1760407855479,-500.0,0.00020989,2]
[391176072,1760407855488,-572.179994,0.00020989,2]
[391176073,1760407855498,-519.14,0.00020989,2]
[391176074,1760407855508,-519.14,0.00020989,2]
[391176075,1760407855517,-519.14,0.00020989,2]
[391176076,1760407855528,-519.14,0.00020989,2]
[391176077,1760407855538,-519.14,0.00020989,2]
[391176078,1760407855547,-519.14,0.00020989,2]
[391176079,1760407855557,-519.14,0.00020989,2]
[391176080,1760407855566,-519.14,0.00020989,2]
[391176081,1760407855576,-519.14,0.00020989,2]
[391176082,1760407855585,-519.14,0.00020989,2]
[391176083,1760407855595,-519.14,0.00020989,2]
[391176084,1760407855604,-519.14,0.00020989,2]
[391176085,1760407855613,-519.14,0.00020989,2]
[391176086,1760407855622,-519.14,0.00020989,2]
[391176087,1760407855631,-519.14,0.00020989,2]
[391176088,1760407855640,-519.14,0.00020989,2]
[391176089,1760407855649,-519.14,0.00020989,2]
[391176090,1760407855658,-519.14,0.00020989,2]
[391176091,1760407855667,-519.14,0.00020989,2]
[391176092,1760407855676,-519.14,0.00020989,2]
[391176093,1760407855685,-519.14,0.00020989,2]
[391176094,1760407855694,-519.14,0.00020989,2]
[391176095,1760407855704,-519.14,0.00020989,2]
[391176096,1760407855713,-519.26271375,0.00020989,2]
[391176097,1760407855722,-501.71746671,0.00020989,2]
[391176098,1760407855732,-506.38831135,0.00020989,2]
[391176099,1760407855741,-505.1164256,0.00020989,2]
[391176100,1760407855751,-500.0,0.00020989,2]
[391176101,1760407855766,-503.99897061,0.00020989,2]
[391176102,1760407855776,-500.0,0.00020989,2]
[391176103,1760407855785,-500.0,0.00020989,2]
[391176104,1760407855795,-158.01708833,0.00020989,2]
[391176105,1760407855805,-503.140151,0.00020989,2]
[391176106,1760407855815,-500.0,0.00020989,2]
[391176107,1760407855824,-504.80604275,0.00020989,2]
[391176108,1760407855834,-500.0,0.00020989,2]
[391176109,1760407855843,-504.34992963,0.00020989,2]
[391176110,1760407855852,-500.0,0.00020989,2]
[391176111,1760407855861,-500.0,0.00020989,2]
[391176112,1760407855871,-500.0,0.00020989,2]
[391176113,1760407855881,-500.0,0.00020989,2]
[391176114,1760407855890,-506.56328022,0.00020989,2]
[391176115,1760407855899,-500.0,0.00020989,2]
[391176116,1760407855909,-159.50910813,0.00020989,2]
[391176117,1760407855919,-500.56387438,0.00020989,2]
[391176118,1760407855928,-503.11463153,0.00020989,2]
[391176119,1760407855937,-500.0,0.00020989,2]
[391176120,1760407855947,-500.0,0.00020989,2]
[391176121,1760407855956,-500.0,0.00020989,2]
[391176122,1760407855965,-500.0,0.00020989,2]
[391176123,1760407855974,-500.0,0.00020989,2]
[391176124,1760407855983,-500.0,0.00020989,2]
[391176125,1760407855992,-391.04379632,0.00020989,2]
[391176126,1760407856002,-500.0,0.00020989,2]
[391176127,1760407856012,-500.0,0.00020989,2]
[391176128,1760407856021,-500.0,0.00020989,2]
[391176129,1760407856030,-500.0,0.00020989,2]
[391176130,1760407856040,-500.0,0.00020989,2]
[391176131,1760407856050,-502.10541315,0.00020989,2]
[391176132,1760407856059,-502.27470376,0.00020989,2]
[391176133,1760407856068,-500.0,0.00020989,2]
[391176134,1760407856078,-500.0,0.00020989,2]
[391176135,1760407856087,-500.0,0.00020989,2]
[391176136,1760407856096,-500.0,0.00020989,2]
[391176137,1760407856106,-500.0,0.00020989,2]
[391176138,1760407856115,-500.0,0.00020989,2]
[391176139,1760407856124,-485.90839569,0.00020989,2]
[391176140,1760407856134,-500.0,0.00020989,2]
[391176141,1760407856143,-500.0,0.00020989,2]
[391176142,1760407856152,-500.0,0.00020989,2]
[391176143,1760407856161,-500.0,0.00020989,2]
[391176144,1760407856171,-500.0,0.00020989,2]
[391176145,1760407856181,-500.0,0.00020989,2]
[391176146,1760407856191,-500.0,0.00020989,2]
[391176147,1760407856203,-500.0,0.00020989,2]
[391176148,1760407856213,-500.0,0.00020989,2]
[391176149,1760407856225,-500.0,0.00020989,2]
[391176150,1760407856236,-501.95998082,0.00020989,2]
[391176151,1760407856247,-500.0,0.00020989,2]
[391176152,1760407856256,-500.0,0.00020989,2]
[391176153,1760407856266,-500.0,0.00020989,2]
[391176154,1760407856275,-500.0,0.00020989,2]
[391176155,1760407856287,-500.0,0.00020989,2]
[391176156,1760407856296,-500.0,0.00020989,2]
[391176157,1760407856307,-500.0,0.00020989,2]
[391176158,1760407856316,-564.36705397,0.00020989,2]
[391176159,1760407856326,-500.0,0.00020989,2]
[391176160,1760407856335,-500.0,0.00020989,2]
[391176161,1760407856344,-500.0,0.00020989,2]
[391176162,1760407856354,-613.99408666,0.00020989,2]
[391176163,1760407856365,-500.0,0.00020989,2]
[391176164,1760407856375,-504.49914389,0.00020989,2]
[391176165,1760407856384,-500.0,0.00020989,2]
[391176166,1760407856393,-500.0,0.00020989,2]
[391176167,1760407856402,-500.0,0.00020989,2]
[391176168,1760407856411,-500.0,0.00020989,2]
[391176169,1760407856421,-503.09458574,0.00020989,2]
[391176170,1760407856430,-500.0,0.00020989,2]
[391176171,1760407856439,-501.97448913,0.00020989,2]
[391176172,1760407856448,-504.63531446,0.00020989,2]
[391176173,1760407856457,-500.0,0.00020989,2]
[391176174,1760407856467,-500.0,0.00020989,2]
[391176175,1760407856477,-500.0,0.00020989,2]
[391176176,1760407856486,-500.0,0.00020989,2]
[391176177,1760407856495,-500.0,0.00020989,2]
[391176178,1760407856505,-500.0,0.00020989,2]
[391176179,1760407856514,-622.02267588,0.00020989,2]
[391176180,1760407856523,-506.02137237,0.00020989,2]
[391176181,1760407856533,-500.0,0.00020989,2]
[391176182,1760407856543,-158.1048311,0.00020989,2]
[391176183,1760407856552,-500.0,0.00020989,2]
[391176184,1760407856561,-500.0,0.00020989,2]
[391176185,1760407856570,-500.0,0.00020989,2]
[391176186,1760407856580,-500.0,0.00020989,2]
[391176187,1760407856590,-500.0,0.00020989,2]
[391176188,1760407856599,-502.69010492,0.00020989,2]
[391176189,1760407856608,-500.0,0.00020989,2]
[391176190,1760407856618,-500.0,0.00020989,2]
[391176191,1760407856627,-500.0,0.00020989,2]
[391176192,1760407856637,-502.03077982,0.00020989,2]
[391176193,1760407856647,-500.0,0.00020989,2]
[391176194,1760407856656,-500.0,0.00020989,2]
[391176195,1760407856665,-500.0,0.00020989,2]
[391176196,1760407856674,-500.0,0.00020989,2]
[391176197,1760407856683,-500.0,0.00020989,2]
[391176198,1760407856693,-500.0,0.00020989,2]
[391176199,1760407856702,-500.0,0.00020989,2]
[391176200,1760407856711,-500.0,0.00020989,2]
[391176201,1760407856720,-500.0,0.00020989,2]
[391176202,1760407856730,-500.0,0.00020989,2]
[391176203,1760407856739,-500.0,0.00020989,2]
[391176204,1760407856749,-500.0,0.00020989,2]
[391176205,1760407856758,-500.0,0.00020989,2]
[391176206,1760407856768,-639.04467724,0.00020989,2]
[391176207,1760407856777,-500.82258315,0.00020989,2]
[391176208,1760407856787,-500.0,0.00020989,2]
[391176209,1760407856796,-500.0,0.00020989,2]
[391176210,1760407856808,-501.49946377,0.00020989,2]
[391176211,1760407856818,-500.0,0.00020989,2]
[391176212,1760407856829,-504.88112365,0.00020989,2]
[391176213,1760407856838,-502.35554789,0.00020989,2]
[391176214,1760407856847,-500.0,0.00020989,2]
[391176215,1760407856857,-500.0,0.00020989,2]
[391176216,1760407856866,-500.0,0.00020989,2]
[391176217,1760407856876,-180.05228611,0.00020989,2]
[391176218,1760407856885,-500.0,0.00020989,2]
[391176219,1760407856895,-500.82937232,0.00020989,2]
[391176220,1760407856904,-500.0,0.00020989,2]
[391176221,1760407856914,-500.0,0.00020989,2]
[391176222,1760407856924,-502.45020248,0.00020989,2]
[391176223,1760407856934,-500.0,0.00020989,2]
[391176224,1760407856943,-500.0,0.00020989,2]
[391176225,1760407856953,-500.0,0.00020989,2]
[391176226,1760407856962,-500.0,0.00020989,2]
[391176227,1760407856972,-500.0,0.00020989,2]
[391176228,1760407856982,-500.0,0.00020989,2]
[391176229,1760407856991,-500.0,0.00020989,2]
[391176230,1760407857000,-500.0,0.00020989,2]
[391176231,1760407857010,-500.98724765,0.00020989,2]
[391176232,1760407857020,-500.0,0.00020989,2]
[391176233,1760407857029,-500.0,0.00020989,2]
[391176234,1760407857038,-593.24202506,0.00020989,2]
[391176235,1760407857048,-500.0,0.00020989,2]
[391176236,1760407857059,-500.0,0.00020989,2]
[391176237,1760407857068,-500.0,0.00020989,2]
[391176238,1760407857077,-500.0,0.00020989,2]
[391176239,1760407857086,-500.0,0.00020989,2]
[391176240,1760407857095,-500.0,0.00020989,2]
[391176241,1760407857104,-500.0,0.00020989,2]
[391176242,1760407857113,-500.0,0.00020989,2]
[391176243,1760407857122,-500.0,0.00020989,2]
[391176244,1760407857140,-502.18047336,0.00020989,2]
[391176245,1760407857151,-500.0,0.00020989,2]
[391176246,1760407857160,-500.0,0.00020989,2]
[391176247,1760407857169,-500.0,0.00020989,2]
[391176248,1760407857179,-503.7809577,0.00020989,2]
[391176249,1760407857188,-500.0,0.00020989,2]
[391176250,1760407857198,-500.0,0.00020989,2]
[391176251,1760407857207,-500.0,0.00020989,2]
[391176252,1760407857220,-500.0,0.00020989,2]
[391176253,1760407857230,-500.0,0.00020989,2]
[391176254,1760407857239,-500.0,0.00020989,2]
[391176255,1760407857248,-500.0,0.00020989,2]
[391176256,1760407857258,-500.0,0.00020989,2]
[391176257,1760407857267,-500.0,0.00020989,2]
[391176258,1760407857277,-500.0,0.00020989,2]
[391176259,1760407857290,-500.0,0.00020989,2]
[391176260,1760407857299,-500.0,0.00020989,2]
[391176261,1760407857308,-589.73290767,0.00020989,2]
[391176262,1760407857318,-500.0,0.00020989,2]
[391176263,1760407857327,-500.0,0.00020989,2]
[391176264,1760407857337,-500.0,0.00020989,2]
[391176265,1760407857346,-500.0,0.00020989,2]
[391176266,1760407857355,-500.0,0.00020989,2]
[391176267,1760407857367,-500.0,0.00020989,2]
[391176268,1760407857376,-501.57693391,0.00020989,2]
[391176269,1760407857385,-501.15664786,0.00020989,2]
[391176270,1760407857395,-500.0,0.00020989,2]
[391176271,1760407857404,-329.7606318,0.00020989,2]
[391176272,1760407857414,-500.0,0.00020989,2]
[391176273,1760407857425,-500.0,0.00020989,2]
[391176274,1760407857435,-500.0,0.00020989,2]
[391176275,1760407857578,-500.0,0.00020989,2]
[391176276,1760407857587,-500.0,0.00020989,2]
[391176277,1760407857597,-167.42904262,0.00020989,2]
[391176278,1760407857606,-500.0,0.00020989,2]
[391176279,1760407857615,-502.21823618,0.00020989,2]
[391176280,1760407857625,-500.0,0.00020989,2]
[391176281,1760407857634,-500.0,0.00020989,2]
[391176282,1760407857643,-500.0,0.00020989,2]
[391176283,1760407857652,-500.0,0.00020989,2]
[391176284,1760407857661,-500.0,0.00020989,2]
[391176285,1760407857671,-500.0,0.00020989,2]
[391176286,1760407857680,-500.0,0.00020989,2]
[391176287,1760407857690,-503.37896802,0.00020989,2]
[391176288,1760407857699,-502.17460683,0.00020989,2]
[391176289,1760407857708,-508.89726455,0.00020989,2]
[391176290,1760407857718,-503.23357653,0.00020989,2]
[391176291,1760407857727,-100000.0,0.0002099,2]
[391176292,1760407857737,-12042.19685667,0.00021,2]
[391176293,1760407857746,-151.0,0.00021,4]
[391176294,1760407857756,-151.0,0.00021,3]
[391176295,1760407857765,-151.0,0.00021,3]
[391176296,1760407857775,-151.0,0.00021,4]
[391176297,1760407857784,-151.0,0.00021,3]
[391176298,1760407857794,-811.67426823,0.00021279,2]
[391176299,1760407857805,-151.0,0.000213,3]
[391176300,1760407857815,-151.0,0.000213,3]
[391176301,1760407857824,-177.37671564,0.000213,2]
[391176302,1760407857834,-500.0,0.00021373,2]
[391176303,1760407857843,-303.99076361,0.00021373,2]
[391176304,1760407857852,-500.0,0.00021373,2]
[391176305,1760407857862,-500.0,0.00021373,2]
[391176306,1760407857871,-500.0,0.00021373,2]
[391176307,1760407857880,-500.0,0.00021373,2]
[391176308,1760407857890,-500.0,0.00021373,2]
[391176309,1760407857899,-321.53753827,0.00021373,2]
[391176310,1760407857909,-639.74137368,0.00021373,2]
[391176311,1760407857918,-500.0,0.00021373,2]
[391176312,1760407857928,-453.92522678,0.00021373,2]
[391176313,1760407857937,-500.0,0.00021373,2]
[391176314,1760407857946,-500.0,0.00021373,2]
[391176315,1760407857955,-500.0,0.00021373,2]
[391176316,1760407857965,-500.0,0.00021373,2]
[391176317,1760407857975,-370000.0,0.00021399,2]
[391176318,1760407857984,-151.0,0.000214,4]
[391176319,1760407857994,-151.0,0.000214,4]
[391176320,1760407858004,-300.0,0.00021406,20]
[391176321,1760407858014,-300.0,0.00021406,20]
[391176322,1760407858023,-300.0,0.00021406,20]
[391176323,1760407858033,-300.0,0.00021406,20]
[391176324,1760407858043,-300.0,0.00021406,20]
[391176325,1760407858054,-300.0,0.00021406,20]
[391176326,1760407858063,-300.0,0.00021406,20]
[391176327,1760407858072,-300.0,0.00021406,20]
[391176328,1760407858081,-300.0,0.00021406,20]
[391176329,1760407858091,-300.0,0.00021406,20]
[391176330,1760407858100,-300.0,0.00021406,20]
[391176331,1760407858109,-300.0,0.00021406,20]
[391176332,1760407858119,-300.0,0.00021406,20]
[391176333,1760407858128,-300.0,0.00021406,20]
[391176334,1760407858137,-300.0,0.00021406,20]
[391176335,1760407858147,-600.0,0.00021406,20]
[391176336,1760407858160,-500.74755138,0.00021473,2]
[391176337,1760407858169,-571.70364611,0.00021473,2]
[391176338,1760407858178,-500.0,0.00021473,2]
[391176339,1760407858188,-500.0,0.00021473,2]
[391176340,1760407858197,-500.0,0.00021473,2]
[391176341,1760407858206,-581.83506962,0.00021473,2]
[391176342,1760407858216,-500.0,0.00021473,2]
[391176343,1760407858226,-504.73960793,0.00021499,2]
[391176344,1760407858235,-500.91747979,0.00021499,2]
[391176345,1760407858245,-502.42220281,0.00021499,2]
[391176346,1760407858255,-502.44987493,0.00021499,2]
[391176347,1760407858264,-500.0,0.00021499,2]
[391176348,1760407858274,-502.42331847,0.00021499,2]
[391176349,1760407858285,-502.62367818,0.00021499,2]
[391176350,1760407858295,-502.65846573,0.00021499,2]
[391176351,1760407858305,-501.67172638,0.00021499,2]
[391176352,1760407858314,-500.0,0.00021499,2]
[391176353,1760407858325,-502.2597321,0.00021499,2]
[391176354,1760407858334,-502.64137381,0.00021499,2]
[391176355,1760407858343,-500.0,0.00021499,2]
[391176356,1760407858353,-503.53603763,0.00021499,2]
[391176357,1760407858363,-539.63289451,0.00021499,2]
[391176358,1760407858372,-500.0,0.00021499,2]
[391176359,1760407858382,-500.0,0.00021499,2]
[391176360,1760407858391,-500.0,0.00021499,2]
[391176361,1760407858400,-500.0,0.00021499,2]
[391176362,1760407858409,-500.0,0.00021499,2]
[391176363,1760407858419,-500.0,0.00021499,2]
[391176364,1760407858428,-500.0,0.00021499,2]
[391176365,1760407858438,-500.0,0.00021499,2]
[391176366,1760407858448,-500.0,0.00021499,2]
[391176367,1760407858458,-500.0,0.00021499,2]
[391176368,1760407858467,-500.0,0.00021499,2]
[391176369,1760407858477,-500.0,0.00021499,2]
[391176370,1760407858486,-500.0,0.00021499,2]
[391176371,1760407858495,-500.0,0.00021499,2]
[391176372,1760407858504,-302.91819371,0.00021499,2]
[391176373,1760407858515,-507.02622677,0.00021499,2]
[391176374,1760407858528,-500.66896069,0.00021499,2]
[391176375,1760407858541,-369.12978367,0.00021499,2]
[391176376,1760407858551,-500.0,0.00021499,2]
[391176377,1760407858560,-500.0,0.00021499,2]
[391176378,1760407858570,-500.0,0.00021499,2]
[391176379,1760407858580,-500.0,0.00021499,2]
[391176380,1760407858590,-500.0,0.00021499,2]
[391176381,1760407858599,-500.0,0.00021499,2]
[391176382,1760407858609,-500.0,0.00021499,2]
[391176383,1760407858618,-500.0,0.00021499,2]
[391176384,1760407858628,-500.0,0.00021499,2]
[391176385,1760407858637,-500.0,0.00021499,2]
[391176386,1760407858647,-500.0,0.00021499,2]
[391176387,1760407858656,-500.0,0.00021499,2]
[391176388,1760407858666,-500.0,0.00021499,2]
[391176389,1760407858675,-500.0,0.00021499,2]
[391176390,1760407858684,-500.0,0.00021499,2]
[391176391,1760407858694,-500.0,0.00021499,2]
[391176392,1760407858703,-500.0,0.00021499,2]
[391176393,1760407858712,-500.0,0.00021499,2]
[391176394,1760407858721,-500.0,0.00021499,2]
[391176395,1760407858731,-500.0,0.00021499,2]
[391176396,1760407858740,-500.0,0.00021499,2]
[391176397,1760407858749,-500.0,0.00021499,2]
[391176398,1760407858758,-329.44,0.00021499,2]
[391176399,1760407858767,-500.0,0.00021499,2]
[391176400,1760407858776,-500.0,0.00021499,2]
[391176401,1760407858785,-500.0,0.00021499,2]
[391176402,1760407858795,-501.63719475,0.00021499,2]
[391176403,1760407858805,-500.0,0.00021499,2]
[391176404,1760407858814,-500.0,0.00021499,2]
[391176405,1760407858824,-500.0,0.00021499,2]
[391176406,1760407858833,-187.77058062,0.00021499,2]
[391176407,1760407858842,-500.0,0.00021499,2]
[391176408,1760407858852,-500.0,0.00021499,2]
[391176409,1760407858861,-500.0,0.00021499,2]
[391176410,1760407858871,-516.20900943,0.00021499,2]
[391176411,1760407858886,-177.86684517,0.00021576,2]
[391176412,1760407858895,-513.72261937,0.00021921,2]
[391176413,1760407858905,-1000.0,0.00021921,2]
[391176414,1760407858915,-1000.0,0.00021921,2]
[391176415,1760407858925,-1000.0,0.00021921,2]
[391176416,1760407858935,-1000.0,0.00021921,2]
[391176417,1760407858945,-1000.0,0.00021921,2]
[391176418,1760407858954,-1002.04849013,0.00021921,2]
[391176419,1760407858964,-402.43064913,0.00022,7]
[391176420,1760407858974,-56648.46,0.00022,7]
[391176421,1760407858984,-1000.0,0.00022021,2]
[391176422,1760407858994,-1000.0,0.00022021,2]
[391176423,1760407859003,-1000.0,0.00022021,2]
[391176424,1760407859013,-1000.0,0.00022021,2]
[391176425,1760407859022,-201.06686846,0.00022176,2]
[391176426,1760407859031,-1505.03816899,0.00022468,2]
[391176427,1760407859041,-1130.46605884,0.00022468,2]
[391176428,1760407859051,-1500.0,0.00022468,2]
[391176429,1760407859062,-806.36688917,0.00022468,2]
[391176430,1760407859071,-1500.0,0.00022468,2]
[391176431,1760407859080,-1500.0,0.00022568,2]
[391176432,1760407859090,-1500.0,0.00022568,2]
[391176433,1760407859099,-1500.0,0.00022568,2]
[391176434,1760407859108,-444.11568481,0.00022568,2]
[391176435,1760407859117,-402.43064913,0.000227,7]
[391176436,1760407859128,-224.26689174,0.00022776,2]
[391176437,1760407859137,-1550.14624559,0.00022801,2]
[391176438,1760407859146,-420.0,0.00022816,2]
[391176439,1760407859156,-1680.0,0.00022924,2]
[391176440,1760407859165,-68480.99271594,0.00023,3]
[391176441,1760407859174,-2021.30467424,0.00023016,2]
[391176442,1760407859183,-2000.0,0.00023016,2]
[391176443,1760407859193,-2000.0,0.00023116,2]
[391176444,1760407859202,-2000.0,0.00023116,2]
[391176445,1760407859212,-2000.0,0.00023116,2]
[391176446,1760407859222,-151.0,0.00023176,2]
[391176447,1760407859231,-151.41768723,0.00023176,2]
[391176448,1760407859241,-151.0,0.00023176,2]
[391176449,1760407859250,-151.56421726,0.00023176,2]
[391176450,1760407859259,-293.27362221,0.00023176,2]
[391176451,1760407859269,-220.5979126,0.00023176,2]
[391176452,1760407859281,-500.0,0.00023176,2]
[391176453,1760407859292,-197.999998,0.00023176,2]
[391176454,1760407859302,-151.0,0.00023176,2]
[391176455,1760407859312,-151.0,0.00023176,2]
[391176456,1760407859322,-284.5357334,0.00023176,2]
[391176457,1760407859332,-151.0,0.00023176,2]
[391176458,1760407859343,-151.0,0.00023176,2]
[391176459,1760407859362,-151.0,0.00023176,2]
[391176460,1760407859372,-500.0,0.00023176,2]
[391176461,1760407859381,-151.0,0.00023176,2]
[391176462,1760407859391,-153.47694727,0.00023176,2]
[391176463,1760407859400,-151.0,0.00023176,2]
[391176464,1760407859409,-198.805713,0.00023231,2]
[391176465,1760407859419,-151.0,0.00023231,2]
[391176466,1760407859428,-500.0,0.00023231,2]
[391176467,1760407859438,-151.0,0.00023231,2]
[391176468,1760407859447,-151.0,0.00023231,2]
[391176469,1760407859456,-151.0,0.00023231,2]
[391176470,1760407859465,-151.0,0.00023231,2]
[391176471,1760407859475,-500.0,0.00023231,2]
[391176472,1760407859485,-151.0,0.00023231,2]
[391176473,1760407859494,-151.0,0.00023231,2]
[391176474,1760407859503,-151.0,0.00023286,2]
[391176475,1760407859512,-500.0,0.00023286,2]
[391176476,1760407859616,-199.53637581,0.00023286,2]
[391176477,1760407859625,-151.0,0.00023286,2]
[391176478,1760407859635,-198.88999291,0.00023286,2]
[391176479,1760407859644,-246.41484151,0.00023286,2]